[Event "HSK GM Invitational 2022"]
[Site "Hamburg"]
[Date "2022.05.24"]
[Round "6.1"]
[White "Prohaszka, Peter"]
[Black "Woelk, Tom-Frederic"]
[Result "1-0"]
[ECO "E04"]
[WhiteElo "2579"]
[BlackElo "2315"]
[Annotator "TA"]
[PlyCount "129"]
[EventDate "2022.05.20"]
[EventType "tourn"]
[EventCountry "GER"]
[SourceTitle "playchess.com"]
[Source "ChessBase"]
[SourceQuality "1"]
[TimeControl "40/5400+30:1800+30"]

{[%evp 13,129,31,48,18,12,21,20,10,34,0,0,-17,15,6,23,16,28,28,31,33,40,40,81,81,81,81,81,81,81,81,81,38,30,23,35,29,23,20,29,28,26,35,29,8,12,8,8,5,8,8,8,8,8,8,8,8,8,8,8,8,8,8,8,8,8,8,8,0,0,0,8,8,8,8,8,8,8,8,8,8,8,8,36,0,34,34,67,36,36,74,74,0,0,0,0,0,0,8,29965,29967,29966,29968,29968,29969,29966,29969,29969,36,36,36,36,36,29985,29986,29986,29987,29987,29988]} 1. d4 {[%emt 0:00:26]} Nf6 {[%emt 0:00:04]} 2. c4 {[%emt 0:00:51]} e6 {[%emt 0:02:11]} 3. g3 {[%emt 0:00:14]} d5 {[%emt 0:00:29]} 4. Bg2 {[%emt 0:00:05]} dxc4 {[%emt 0:00:05]} 5. Nf3 {[%emt 0:00:04]} a6 {[%emt 0:00:07]} 6. O-O {[%emt 0:00:54]} Nc6 {[%emt 0:00:29]} 7. e3 {[%emt 0:02:21]} Rb8 {[%emt 0:00:10]} 8. Qe2 {[%emt 0:00:29] E04: Open Catalan: 5 Nf3.} b5 {[%emt 0:01:32]} 9. b3 {[%emt 0:00:06]} cxb3 {[%emt 0:00:19]} 10. axb3 {[%emt 0:00:02] The position is equal.} Bb7 {[%emt 0:02:01]} 11. Rd1 $5 {[%emt 0:07:22][%mdl 4] Leaves trodden paths.} Nb4 {[%emt 0:09:25]} 12. Ba3 {[%emt 0:02:44]} Be7 {[%emt 0:02:55]} 13. Nc3 {[%emt 0:07:40]} Nbd5 {[%emt 0:05:49] [#]} 14. Nxd5 $146 {[%emt 0:04:21]} ({Predecessor:} 14. Bxe7 Nxc3 15. Qc2 Qxe7 16. Qxc3 Nd5 17. Qd2 O-O 18. Rdc1 Rfc8 19. Rc5 Nf6 20. Qc2 {½-½ (39) Garriga Cazorla,P (2392)-Lianes Garcia,M (2236) Linares 2016}) 14... exd5 {[%emt 0:05:33]} (14... Qxd5 15. Ne1 Ne4 16. Bxe7 Kxe7 17. Qc2 $16) 15. Bxe7 {[%emt 0:04:53]} Qxe7 {[%emt 0:00:04]} 16. Rdc1 {[%emt 0:00:06]} O-O {[%emt 0:00:35]} 17. Ne5 {[%emt 0:01:58][%mdl 1024] White has compensation.} Qd6 {[%emt 0:05:09]} 18. Qc2 {[%emt 0:05:12]} c6 {[%emt 0:07:59]} 19. Bh3 {[%emt 0:02:09][%cal Re5c6] Prevents Nd7.} ({Wrong is} 19. Nxc6 $2 Rbc8 20. Qc5 Rxc6 $19) 19... g6 {[%emt 0:00:38]} 20. Qc5 $1 {[%emt 0:09:13]} ({Much worse is} 20. Nxc6 Rbc8 $1 21. Bxc8 Rxc8 $15) 20... Rfd8 {[%emt 0:05:15][%cal Bf8d8,Bd8d6,Bd6c6][%mdl 32]} 21. Nxc6 {[%emt 0:09:40] White is much more active.} (21. Qa7 {feels hotter.} Rf8 22. Rab1 a5 23. Ra1) 21... Bxc6 {[%emt 0:01:00]} 22. Qxd6 {[%emt 0:01:45]} Rxd6 {[%emt 0:00:06]} 23. Rxa6 {[%emt 0:00:06]} Ra8 {[%emt 0:08:01]} 24. Rxa8+ {[%emt 0:04:13][%mdl 64] Remove Defender} Bxa8 {[%emt 0:00:05]} 25. Rc8+ {[%emt 0:00:03]} Kg7 {[%emt 0:00:05] ...Ra6 is the strong threat.} 26. Rxa8 $11 {[%emt 0:00:03][%mdl 4096] Endgame KRB-KRN} Rc6 {[%emt 0:00:03]} 27. Rc8 {[%emt 0:16:24]} Ra6 {[%emt 0:00:17]} 28. Rc1 {[%emt 0:06:17]} Ra2 {[%emt 0:02:19]} 29. Bg2 {[%emt 0:07:22]} Rb2 {[%emt 0:00:33]} 30. Bf3 {[%emt 0:01:07]} Rxb3 {[%emt 0:01:40]} 31. Rc5 {[%emt 0:00:43]} Rb1+ {[%emt 0:01:00]} 32. Kg2 {[%emt 0:00:02]} Rb2 $1 {[%emt 0:03:53]} 33. g4 {[%emt 0:02:55][%cal Bg3g4,Bg4g5][%mdl 32]} b4 $1 {[%emt 0:01:50]} 34. g5 {[%emt 0:01:16]} Ne4 {[%emt 0:00:08]} 35. Bxe4 {[%emt 0:00:06]} dxe4 {[%emt 0:00:07] KR-KR} 36. Rc8 {[%emt 0:00:59]} b3 {[%emt 0:00:37]} 37. Rb8 {[%emt 0:00:41]} h6 {[%emt 0:00:56]} 38. h4 {[%emt 0:00:32]} hxg5 {[%emt 0:05:06]} 39. hxg5 {[%emt 0:00:01]} Ra2 {[%emt 0:00:38]} 40. Rb5 {[%emt 0:02:10]} Rb2 {[%emt 0:01:26]} ({Don't take} 40... b2 41. Kg3 $16) 41. Rb8 {[%emt 0:32:51]} Ra2 {[%emt 0:37:57]} 42. Kg3 {[%emt 0:00:00]} Rb2 {[%emt 0:00:00]} (42... b2 $2 43. Kf4 $16) 43. Kf4 {[%emt 0:00:00]} Rxf2+ {[%emt 0:00:00]} 44. Kxe4 {[%emt 0:00:00]} b2 {[%emt 0:00:00]} 45. d5 {[%emt 0:00:00]} Rd2 {[%emt 0:00:00]} 46. Ke5 {[%emt 0:00:00]} Rg2 {[%emt 0:00:00]} 47. Kd6 {[%emt 0:00:00]} Re2 {[%emt 0:00:00]} 48. Kc5 {[%emt 0:00:00] Strongly threatening d6.} (48. Rb7 {seems wilder.} Kg8 49. Kc5 Rc2+ 50. Kd4) 48... Rxe3 {[%emt 0:25:54]} 49. Rxb2 {[%emt 0:04:34] Black must now prevent d6.} Re5 {[%emt 0:00:00]} 50. Kc6 {[%emt 0:00:00]} Rxg5 {[%emt 0:00:00]} 51. d6 {[%emt 0:00:00] White wants to mate with d7.} Rg1 {[%emt 0:00:00]} 52. Rc2 {[%emt 0:00:00] Inhibits Rc1.} (52. d7 $16 Rc1+ 53. Kd6 Rd1+ 54. Ke7 Re1+ 55. Kd6 Rd1+ 56. Ke7 Re1+ 57. Kd6 Rd1+) 52... Rd1 {[%emt 0:00:00]} 53. d7 {[%emt 0:00:00]} f5 {[%emt 0:00:00]} 54. Re2 {[%emt 0:00:00] Threatening mate with Re8.} Kf6 {[%emt 0:00:00]} 55. Re8 {[%emt 0:00:00]} f4 $2 {[%emt 0:00:00][%mdl 8192]} (55... g5 $11) 56. d8=Q+ {[%emt 0:00:00]} Rxd8 {[%emt 0:00:00]} 57. Rxd8 {[%emt 0:00:00] KR-KPP} Ke5 {[%emt 0:00:00]} 58. Kc5 {[%emt 0:00:00]} Ke4 {[%emt 0:00:00]} 59. Kc4 $1 {[%emt 0:00:00]} Ke3 {[%emt 0:00:00] [#]} 60. Kc3 $2 {[%emt 0:00:00]} (60. Rd3+ $1 {mates} Ke4 61. Rd8 g5 62. Kc3 Ke3 63. Re8+ Kf2 64. Kd2 g4 65. Re4) 60... f3 $1 $14 {[%emt 0:00:00]} 61. Re8+ {[%emt 0:00:00]} Kf2 $1 {[%emt 0:00:00]} 62. Kd2 {[%emt 0:00:00] Rg8 would kill now.} Kg1 $2 {[%emt 0:02:39][%mdl 8192]} (62... Kg2 $14) 63. Rg8 {[%emt 0:01:04] White mates.} f2 {[%emt 0:00:05]} 64. Rxg6+ {[%emt 0:00:02]} Kf1 {[%emt 0:00:05] [#]} 65. Rf6 $1 {[%emt 0:00:03] Weighted Error Value: White=0.18 (very precise) /Black=0.23 (precise)} 1-0

[Event "HSK GM Invitational 2022"]
[Site "Hamburg"]
[Date "2022.05.30"]
[Round "6.2"]
[White "Colpe, Malte"]
[Black "Svane, Frederik"]
[Result "1/2-1/2"]
[ECO "E08"]
[WhiteElo "2348"]
[BlackElo "2501"]
[Annotator "TA"]
[PlyCount "53"]
[EventDate "2022.05.20"]
[EventType "tourn"]
[EventCountry "GER"]
[SourceTitle "playchess.com"]
[Source "ChessBase"]
[SourceQuality "1"]
[TimeControl "40/5400+30:1800+30"]

{[%evp 28,30,0,0,9]} 1. d4 {[%emt 0:00:02]} Nf6 {[%emt 0:00:04]} 2. c4 {[%emt 0:00:07]} e6 {[%emt 0:00:04]} 3. Nf3 {[%emt 0:00:05]} b6 {[%emt 0:00:04]} 4. g3 {[%emt 0:00:15]} Bb7 {[%emt 0:00:06]} 5. Bg2 {[%emt 0:00:12]} Bb4+ {[%emt 0:00:05]} 6. Bd2 {[%emt 0:00:52]} Be7 {[%emt 0:00:05]} 7. O-O {[%emt 0:00:45]} c6 {[%emt 0:00:06]} 8. Qc2 {[%emt 0:01:51]} d5 {[%emt 0:00:07]} 9. Rd1 {[%emt 0:03:37]} O-O {[%emt 0:00:14]} 10. Bf4 {[%emt 0:02:39]} Nbd7 {[%emt 0:00:24]} 11. Ne5 {[%emt 0:01:54]} Nh5 {[%emt 0:00:05]} 12. Bc1 {[%emt 0:02:13]} Nhf6 {[%emt 0:01:45]} 13. Bf4 {[%emt 0:02:06]} Nh5 {[%emt 0:00:10]} 14. Bc1 {[%emt 0:00:07]} Nhf6 {[%emt 0:18:26]} 15. Bf4 {[%emt 0:00:09]} Nh5 {[%emt 0:00:11] [#] An interesting draw. 15...Nh5 has become a bit dusty these days. E08: Closed Catalan: Main Line: 7 Qc2.} {Predecessor:} 16. Bd2 $146 Nhf6 17. cxd5 cxd5 18. Nc6 Bxc6 19. Qxc6 Rc8 20. Qa4 Qc7 21. Nc3 Qb7 22. e3 a6 23. Qb3 Rc7 24. Rdc1 b5 25. Ne2 Nb6 26. Rxc7 Qxc7 27. Rc1 {½-½ (33) Vidit,S (2726)-Duda,J (2738) Krasnaya Polyana 2021} 1/2-1/2

[Event "HSK GM Invitational 2022"]
[Site "Hamburg"]
[Date "2022.05.24"]
[Round "6.3"]
[White "Souleidis, Georgios"]
[Black "Koellner, Ruben Gideon"]
[Result "1/2-1/2"]
[ECO "C41"]
[WhiteElo "2430"]
[BlackElo "2440"]
[Annotator "TA"]
[PlyCount "60"]
[EventDate "2022.05.20"]
[EventType "tourn"]
[EventCountry "GER"]
[SourceTitle "playchess.com"]
[Source "ChessBase"]
[SourceQuality "1"]
[TimeControl "40/5400+30:1800+30"]

{[%evp 9,60,8,16,24,12,17,30,14,52,62,45,20,71,28,25,25,25,15,6,0,0,-6,-13,-34,0,0,10,0,102,12,21,0,73,0,0,0,0,0,0,0,0,0,0,-4,0,-1,0,0,0,0,0,0,4]} 1. e4 {[%emt 0:00:04]} d6 {[%emt 0:00:06]} 2. d4 {[%emt 0:00:04]} Nf6 {[%emt 0:00:04]} 3. Nc3 {[%emt 0:00:02]} e5 {[%emt 0:00:05]} 4. Nf3 {[%emt 0:00:05]} Nbd7 {[%emt 0:00:04]} 5. Rg1 {[%emt 0:00:26]} c6 {[%emt 0:00:04]} 6. g4 {[%emt 0:00:09] C41: Philidor Defence.} h6 {[%emt 0:00:06]} 7. Be3 {[%emt 0:00:15] 7.h4 is more advanced technology.} Qa5 {[%emt 0:02:08]} 8. Nd2 {[%emt 0:02:17] White has an edge.} b5 {[%emt 0:09:37]} 9. a3 {[%emt 0:01:01]} a6 {[%emt 0:04:53]} 10. f4 {[%emt 0:13:33]} Bb7 {[%emt 0:07:58]} (10... Qb6 $11 {keeps the balance.}) 11. Nb3 {[%emt 0:18:29]} Qc7 {[%emt 0:00:10] [#]} 12. g5 $146 {[%emt 0:00:18]} ({Predecessor:} 12. Qe2 c5 13. dxc5 dxc5 14. g5 hxg5 15. fxg5 Nxe4 16. Nxe4 Bxe4 17. O-O-O Rb8 18. Nd2 {0-1 (35) Buzeti,J (2207)-Janzelj,L (2066) Otocec 2015}) 12... hxg5 {[%emt 0:07:15]} 13. fxg5 {[%emt 0:00:03]} Nh5 {[%emt 0:02:05]} 14. g6 {[%emt 0:05:23]} fxg6 {[%emt 0:00:35]} 15. Qg4 {[%emt 0:00:34] [#] Hoping for Qe6+.} O-O-O $1 {[%emt 0:01:30]} 16. dxe5 {[%emt 0:01:36]} dxe5 {[%emt 0:03:27]} 17. O-O-O {[%emt 0:00:35]} Nhf6 {[%emt 0:01:15]} (17... Kb8 $5 {[%cal Rh5f4]}) 18. Qxg6 {[%emt 0:08:52]} a5 {[%emt 0:14:56] [#]} (18... c5 $11) 19. Qf5 {[%emt 0:11:22] 0x0.000a5af3d217dp-1022s more active pieces.} ({White should play} 19. a4 $1 $16) 19... Kb8 {[%emt 0:13:25]} 20. Qf2 {[%emt 0:04:48]} a4 {[%emt 0:03:47]} (20... b4 $1 $11 {remains equal.} 21. axb4 axb4) 21. Nc5 {[%emt 0:01:02]} (21. Nd2 $16) 21... Nxc5 {[%emt 0:00:34] The position is equal.} 22. Rxd8+ {[%emt 0:00:11]} Qxd8 {[%emt 0:00:07]} 23. Bxc5 {[%emt 0:00:05]} Bxc5 {[%emt 0:03:40]} 24. Qxc5 {[%emt 0:00:02]} Qd4 {[%emt 0:00:13]} 25. Qxd4 {[%emt 0:01:21]} exd4 {[%emt 0:00:06]} 26. Ne2 $132 {[%emt 0:00:34][%mdl 2048] White is not keeping still} Nxe4 {[%emt 0:01:34] Black wants to play ...c5.} 27. Nxd4 {[%emt 0:01:18]} Rxh2 {[%emt 0:01:05]} 28. Bd3 {[%emt 0:00:17]} Nf6 {[%emt 0:05:12]} 29. Rxg7 {[%emt 0:05:53]} Rh1+ {[%emt 0:00:07]} 30. Kd2 {[%emt 0:00:04]} Rh2+ {[%emt 0:00:23] Weighted Error Value: White=0.15 (very precise) /Black=0.20 (precise)} 1/2-1/2

[Event "HSK GM Invitational 2022"]
[Site "Hamburg"]
[Date "2022.05.30"]
[Round "6.4"]
[White "Trent, Lawrence"]
[Black "Kotronias, Vasilios"]
[Result "0-1"]
[ECO "B30"]
[WhiteElo "2398"]
[BlackElo "2465"]
[Annotator "TA"]
[PlyCount "56"]
[EventDate "2022.05.20"]
[EventType "tourn"]
[EventCountry "GER"]
[SourceTitle "playchess.com"]
[Source "ChessBase"]
[SourceQuality "1"]
[TimeControl "40/5400+30:1800+30"]

{[%evp 10,56,18,14,17,-1,0,0,1,15,0,-1,0,-4,0,-8,0,0,15,5,19,0,0,0,23,14,19,0,30,0,0,-20,-22,-64,-85,-139,-170,-284,-280,-529,-306,-301,-299,-373,-297,-278,-301,-296,-290]} 1. e4 {[%emt 0:00:02]} c5 {[%emt 0:00:11]} 2. Nc3 {[%emt 0:00:05]} Nc6 {[%emt 0:00:05]} 3. Bb5 {[%emt 0:00:04]} Nd4 {[%emt 0:00:05]} 4. Nf3 {[%emt 0:00:04]} e6 {[%emt 0:00:17]} 5. O-O {[%emt 0:00:12]} a6 {[%emt 0:01:00]} 6. Bd3 {[%emt 0:00:05]} Nc6 {[%emt 0:00:24] B30: Sicilian: 2...Nc6 3 Bb5, lines without ...g6.} 7. b3 {[%emt 1:33:28] 7.e5 is more advanced technology.} d6 8. Bb2 {[%emt 0:00:00]} Nf6 {[%emt 0:02:14] The position is equal.} 9. Re1 {[%emt 0:00:00]} Qc7 {[%emt 0:06:23]} 10. Bf1 {[%emt 0:00:00]} Be7 {[%emt 0:01:08]} 11. Ne2 {[%emt 0:00:00] [#]} O-O $146 {[%emt 0:01:05]} ({Predecessor:} 11... Nxe4 12. Bxg7 Rg8 13. Bb2 Bd7 14. Ng3 Nxg3 15. hxg3 e5 16. a3 f5 17. d4 cxd4 {0-1 (31) Iuldachev,S (2511)-Bocharov,D (2592) New Delhi 2010}) 12. Ng3 {[%emt 0:00:00]} (12. d4 {looks sharper.} Nxe4 13. d5 exd5 14. Nf4) 12... b5 {[%emt 0:18:24]} 13. c3 {[%emt 0:00:00]} Bb7 {[%emt 0:00:04]} 14. d4 {[%emt 0:00:00]} d5 {[%emt 0:00:25]} 15. e5 {[%emt 0:00:00]} Ne4 {[%emt 0:00:05]} 16. Bd3 {[%emt 0:00:00]} Nxg3 {[%emt 0:00:07]} 17. hxg3 {[%emt 0:00:00]} c4 {[%emt 0:00:09]} 18. Bc2 {[%emt 0:00:00]} a5 {[%emt 0:03:41]} 19. bxc4 {[%emt 0:00:00]} dxc4 {[%emt 0:00:27]} 20. Nd2 {[%emt 0:00:00]} (20. Bc1 $5 {[%cal Rf3g5]}) 20... Rfd8 {[%emt 0:04:23]} 21. Qe2 {[%emt 0:00:00]} ({Reject} 21. Qh5 g6 22. Qe2 Nxd4 $1 23. cxd4 c3 24. Bxc3 Qxc3 $17) 21... b4 $1 {[%emt 0:00:27]} 22. d5 {[%emt 0:03:16]} (22. Rac1 $142) 22... exd5 $17 {[%emt 0:01:43] Threatens to win with ...d4.} 23. e6 {[%emt 0:00:38] [#]} (23. cxb4 $142 Bxb4 24. Rad1) 23... Bf6 $1 $19 {[%emt 0:01:11]} ({Not} 23... Bg5 24. Qh5 Bh6 25. Nf3 $16) 24. Bf5 $2 {[%emt 0:03:20]} (24. Nxc4 {was called for.} dxc4 25. Qxc4) 24... fxe6 {[%emt 0:00:53]} 25. Qxe6+ {[%emt 0:00:31]} Kh8 {[%emt 0:02:18]} 26. Nf3 {[%emt 0:00:23]} Qe7 {[%emt 0:04:29]} 27. Rac1 {[%emt 0:01:11]} Qxe6 {[%emt 0:04:49]} 28. Bxe6 {[%emt 0:00:01]} d4 {[%emt 0:01:25] Weighted Error Value: White=0.31/Black=0.14 (very precise)} 0-1

[Event "HSK GM Invitational 2022"]
[Site "Hamburg"]
[Date "2022.05.24"]
[Round "6.5"]
[White "Mendonca, Leon Luke"]
[Black "Carlstedt, Jonathan"]
[Result "1-0"]
[ECO "A77"]
[WhiteElo "2551"]
[BlackElo "2444"]
[Annotator "TA"]
[PlyCount "117"]
[EventDate "2022.05.20"]
[EventType "tourn"]
[EventCountry "GER"]
[SourceTitle "playchess.com"]
[Source "ChessBase"]
[SourceQuality "1"]
[TimeControl "40/5400+30:1800+30"]

{[%evp 24,117,49,11,63,34,99,101,108,23,29,40,49,19,44,94,89,110,78,102,171,165,150,100,187,177,205,197,259,144,287,288,315,321,322,313,340,336,333,332,396,379,529,507,585,587,924,671,673,685,862,894,984,960,740,922,870,637,593,0,658,242,225,221,211,189,657,633,604,623,653,664,656,643,631,624,912,916,993,972,5369,2170,29955,29957,29955,29957,29957,29949,8427,8427,5385,5281,2033,1752,1244,681]} 1. d4 {[%emt 0:00:03]} Nf6 {[%emt 0:00:07]} 2. c4 {[%emt 0:00:34]} e6 {[%emt 0:00:07]} 3. Nf3 {[%emt 0:00:30]} c5 {[%emt 0:00:12]} 4. d5 {[%emt 0:00:38]} exd5 {[%emt 0:00:06]} 5. cxd5 {[%emt 0:00:06]} d6 {[%emt 0:00:03]} 6. Nc3 {[%emt 0:01:35]} g6 {[%emt 0:00:20]} 7. Nd2 {[%emt 0:00:50]} Nbd7 {[%emt 0:00:19]} 8. e4 {[%emt 0:01:09]} a6 {[%emt 0:00:07]} 9. a4 {[%emt 0:03:43]} Bg7 {[%emt 0:05:44]} 10. Be2 {[%emt 0:00:56]} O-O {[%emt 0:00:06]} 11. O-O {[%emt 0:01:26]} Re8 {[%emt 0:00:06]} 12. h3 {[%emt 0:05:37]} Rb8 {[%emt 0:04:22]} 13. Qc2 {[%emt 0:02:00]} Qc7 {[%emt 0:03:27] A77: Modern Benoni: Classical: 9...Re8 10 Nd2: 10...a6 and 10...Nbd7.} (13... Ne5 $11) 14. Re1 {[%emt 0:05:56]} g5 {[%emt 0:02:41]} (14... c4 $14) 15. Nc4 $16 {[%emt 0:19:30][%cal Bd2c4,Bc4a5,Ba5c6][%mdl 32]} h6 {[%emt 0:03:13] [#] White is better.} 16. f4 $146 {[%emt 0:05:40]} (16. a5 $16) ({Predecessor:} 16. a5 b5 17. axb6 Nxb6 18. Na5 Ra8 19. Bd2 Bd7 20. Ra3 Re7 21. Bf3 Re5 22. Rea1 {1-0 (43) Radovanovic,M (2408)-Pikula,D (2466) Valjevo 2018}) 16... b5 $11 {[%emt 0:04:51]} 17. axb5 {[%emt 0:00:39]} (17. fxg5 hxg5 18. axb5 axb5 $15) 17... axb5 {[%emt 0:00:03]} 18. Na5 {[%emt 0:03:15]} (18. fxg5 hxg5 19. Ne3 b4 $11) 18... c4 {[%emt 0:05:03]} 19. Nc6 {[%emt 0:05:54]} Rb7 {[%emt 0:03:06]} 20. fxg5 {[%emt 0:07:07] White is more active.} hxg5 {[%emt 0:00:08]} 21. Bxg5 {[%emt 0:00:55]} Nh7 {[%emt 0:05:35]} (21... Nb8 $16 {might work better.}) 22. Bf4 $18 {[%emt 0:12:47]} Ne5 {[%emt 0:01:14]} 23. Kh2 {[%emt 0:02:26]} (23. Bxe5 $142 Bxe5 24. Kh1) 23... Bd7 {[%emt 0:04:16]} (23... Nxc6 $16 24. dxc6 Qxc6) 24. Nxe5 {[%emt 0:02:37]} Bxe5 {[%emt 0:00:17]} 25. Rf1 {[%emt 0:01:34]} b4 {[%emt 0:04:16]} (25... Qd8 $142 26. Bxe5 Rxe5) 26. Nd1 {[%emt 0:01:33]} (26. Bxe5 $18 Rxe5 27. Nd1) 26... c3 {[%emt 0:01:37]} (26... Bg7 $16 27. Qxc4 (27. Bxc4 Nf6 $16) 27... Qxc4 28. Bxc4 Bb5) 27. Bxe5 {[%emt 0:04:22]} Rxe5 {[%emt 0:00:23]} 28. bxc3 {[%emt 0:00:39]} b3 {[%emt 0:00:42]} 29. Qd2 {[%emt 0:02:23]} Qd8 {[%emt 0:08:06]} 30. Qf4 {[%emt 0:02:53]} f5 {[%emt 0:02:55]} 31. Bd3 {[%emt 0:01:52]} fxe4 {[%emt 0:02:07]} 32. Bxe4 {[%emt 0:00:20]} ({Not} 32. Ba6 Rb8 $16) 32... Ng5 {[%emt 0:00:29] Inhibits Qf7+.} 33. Bd3 {[%emt 0:01:08]} Bc8 {[%emt 0:02:11]} 34. Ra8 {[%emt 0:01:54] Black must now prevent Ne3.} b2 {[%emt 0:01:51]} 35. Qc4 {[%emt 0:02:20]} (35. Qf6 Qxf6 36. Rxf6 b1=Q 37. Bxb1 Rxb1 $18) 35... Re8 {[%emt 0:01:13] [#]} 36. Ne3 $1 {[%emt 0:00:41][%mdl 512]} Rc7 {[%emt 0:03:03]} (36... Qc7 37. Qf4) 37. Qd4 {[%emt 0:00:10] Threatens to win with Ng4.} Qe7 {[%emt 0:03:05] [#]} 38. Rxc8 $1 {[%emt 0:01:03]} Rexc8 {[%emt 0:06:31]} 39. Ng4 {[%emt 0:00:06][%cal Rg4h6]} Nf7 {[%emt 0:00:18] Inhibits Nh6+.} 40. Nf6+ {[%emt 0:01:00]} Kf8 {[%emt 0:01:28] ...Qe5+ is the strong threat.} 41. Ng4 {[%emt 0:09:55] Inhibits Qe5+.} (41. Qg4 $18 {[%csl Gf6][%cal Rg4g8]} Qe5+ 42. Kh1) 41... Ke8 $2 {[%emt 0:10:54][%mdl 8192]} (41... Kg8 $11 42. Rf6 Ne5 43. Nh6+ Kh8) 42. Qg7 $2 $40 {[%emt 0:09:43][%mdl 128] White wants a kill.} (42. Bg6 {Intending Qh8+ and mate.} b1=Q 43. Rxb1) 42... Kd8 {[%emt 0:03:48]} 43. Rf6 {[%emt 0:04:00] aiming for Re6. Really sharp!} ({Resist} 43. Bb5 $6 Ra7 $16) 43... Rd7 {[%emt 0:04:25] Hoping for ...Ne5.} 44. Re6 {[%emt 0:02:21] Prevents Ne5.} Qg5 {[%emt 0:00:41]} (44... Qh4) 45. Qd4 {[%emt 0:01:23]} Rb8 {[%emt 0:04:10][%cal Of7e5]} 46. Rg6 {[%emt 0:02:56]} Qxg6 {[%emt 0:07:17]} 47. Bxg6 {[%emt 0:00:02]} b1=Q {[%emt 0:00:07]} 48. Bxb1 {[%emt 0:00:07]} Rxb1 {[%emt 0:00:04]} 49. h4 {[%emt 0:00:13]} Rb2 {[%emt 0:01:05]} 50. h5 {[%emt 0:00:45]} Re7 {[%emt 0:00:07]} 51. h6 {[%emt 0:00:56]} Ree2 {[%emt 0:01:18]} 52. Qf6+ {[%emt 0:01:07]} Ke8 {[%emt 0:00:01]} 53. h7 {[%emt 0:00:48]} Rxg2+ {[%emt 0:00:04]} 54. Kh3 {[%emt 0:00:07]} Rg1 {[%emt 0:00:48]} 55. h8=Q+ {[%emt 0:00:16]} Nxh8 {[%emt 0:00:02]} 56. Qxh8+ {[%emt 0:00:03] White is clearly winning.} Kd7 {[%emt 0:00:09]} 57. Qg7+ {[%emt 0:00:30]} Kc8 {[%emt 0:00:06]} 58. Qf8+ {[%emt 0:00:30]} Kb7 {[%emt 0:00:27]} 59. Qe7+ {[%emt 0:00:19] Weighted Error Value: White=0.59/Black=0.80} 1-0